Cogmind - Beta 10.2 @@@ ROGUE MODE // 2021.01.19 @ 22:17:42 Player: cavemonk Result: Destroyed by 8R-AWN with 8R-AWN's Boregun Performance ------------- Evolutions (1) 500 Regions Visited (5) 1000 Robots Destroyed (27) 135 Value Destroyed (593) 593 Prototype IDs (25) 500 Alien Tech Used (0) 0 Bonus (300) 300 TOTAL SCORE: 3028 Bonus ------- Aligned with FarCom 300 Cogmind --------- Core Integrity 0/400 Matter 138/300 Energy 100/100 System Corruption 1% Temperature Cool (0) Movement Core (600) Ox11 Location -9/Exiles Parts ------- > --- POWER (1) -------- (None) > --- PROPULSION (2) --- (None) > --- UTILITY (4) ------ Large Storage Unit Large Storage Unit Improved Light Armor Plating > --- WEAPON (2) ------- (None) > --- INVENTORY (16) --- Improved Heat Sink Improved Heat Sink Large Storage Unit High-capacity Storage Unit Hacking Suite Rocket Launcher Rocket Launcher Rocket Launcher Field Lobotomy Kit Peak State ------------ > --- POWER ------------ Improved Ion Engine > --- PROPULSION ------- Light Treads Light Treads > --- UTILITY ---------- Large Storage Unit Large Storage Unit High-capacity Storage Unit Improved Light Armor Plating > --- WEAPON ----------- Rocket Launcher Field Lobotomy Kit > --- INVENTORY -------- Ion Engine Light Treads Light Treads Light Treads Improved Heat Sink Improved Heat Sink Large Storage Unit Large Battery High-capacity Matter Pod Improved Light Armor Plating Improved Light Armor Plating Improved Light Armor Plating Hacking Suite EM Pulse Cannon EM Pulse Cannon EM Pulse Cannon EM Pulse Cannon Assault Rifle Heavy Assault Rifle Heavy Assault Rifle EMP Blaster Rocket Launcher Rocket Launcher Plasma Cutter [Rating: 27] Favorites ----------- Power Improved Ion Engine Engine Improved Ion Engine Power Core Light Nuclear Core Propulsion Light Treads Treads Light Treads Wheel Wheel Utility Large Storage Unit Device Improved Heat Sink Storage Large Storage Unit Protection Light Armor Plating Weapon Particle Cannon Energy Cannon Particle Cannon Ballistic Gun Assault Rifle Launcher Rocket Launcher Special Weapon Field Lobotomy Kit Build | -11 -10 -10 -9 -9 -9 ------- Run | Scr Mat Min Mat Min Exi Slots Evolved 2 | . . . 2 . . Power . | . . . . . . Propulsion . | . . . . . . Utility 2 | . . . 2 . . Weapon . | . . . . . . Parts Attached 69 | 7 16 1 18 . 27 Power 5 | 1 1 . 2 . 1 Engine 4 | 1 . . 2 . 1 Core 1 | . 1 . . . . Reactor . | . . . . . . Propulsion 9 | 2 1 . 3 . 3 Treads 7 | 1 1 . 2 . 3 Leg . | . . . . . . Wheel 2 | 1 . . 1 . . Hover . | . . . . . . Flight . | . . . . . . Utility 19 | 2 5 1 6 . 5 Device 4 | 1 . . 2 . 1 Storage 9 | 1 4 1 2 . 1 Processor . | . . . . . . Hackware . | . . . . . . Protection 6 | . 1 . 2 . 3 Artifact . | . . . . . . Weapon 36 | 2 9 . 7 . 18 Energy Gun . | . . . . . . Energy Cannon 13 | . 4 . 5 . 4 Ballistic Gun 14 | 2 4 . . . 8 Ballistic Cannon . | . . . . . . Launcher 4 | . 1 . 2 . 1 Special Weapon 5 | . . . . . 5 Impact Weapon . | . . . . . . Slashing Weapon . | . . . . . . Piercing Weapon . | . . . . . . Special Melee Weapon . | . . . . . . Unidentified Prototypes . | . . . . . . Parts Lost 20 | . . . . . 20 Power 2 | . . . . . 2 Propulsion 5 | . . . . . 5 Utility 3 | . . . . . 3 Weapon 10 | . . . . . 10 Highest Loss Streak 8 | . . . . . 8 Average Slot Usage (%) 98 | . 99 100 99 100 92 Engine 8 | . 13 . 8 11 9 Core 2 | . . 14 2 . . Treads 23 | . 27 28 21 22 18 Device 4 | . . . 11 . 1 Storage 26 | . 20 28 25 33 30 Protection 7 | . 7 . 7 11 12 Energy Cannon 11 | . 7 . 21 11 9 Ballistic Gun 8 | . 18 28 . . 1 Launcher 2 | . 1 . . 11 7 Naked Turns . | . . . . . . Heaviest Build 86 | 12 45 57 84 84 86 Greatest Support 40 | 20 40 40 40 40 40 Greatest Overweight (x) 6 | 2 1 1 6 2 2 Average Overweight (x) 1 | . . 1 1 2 1 Largest Inventory Capacity 24 | 6 16 18 24 24 24 Average Capacity 17 | 5 10 17 19 24 22 Most Carried 24 | 4 16 18 24 24 24 Average Carried 17 | 1 10 17 19 24 20 Final Capacity 24 | 6 16 18 24 24 16 Final Carried 24 | 3 16 18 24 24 9 Class Distribution -------------------- 69% | Mutant 30% | Hauler-Mutant Dominant Class ---------------- Mutant | -10/Materials Mutant | -10/Mines Mutant | -9/Materials Hauler-Mutant | -9/Mines Hauler-Mutant | -9/Exiles Resources | -11 -10 -10 -9 -9 -9 ----------- Run | Scr Mat Min Mat Min Exi Matter Collected 1203 | 274 429 106 193 1 200 Remotely . | . . . . . . Salvage Created 953 | 28 414 213 254 36 8 Parts 59 | 2 22 13 21 1 . Haulers Intercepted 2 | . 2 . . . . Recyclers Shooed . | . . . . . . Parts Field Recycled . | . . . . . . Retrieved Matter . | . . . . . . Parts Self-Destructed . | . . . . . . Prevented . | . . . . . . Kills | -11 -10 -10 -9 -9 -9 ------- Run | Scr Mat Min Mat Min Exi Combat Hostiles Destroyed 25 | . 8 2 7 1 7 Guns 3 | . 1 2 . . . Cannons 8 | . 5 . 3 . . AOE 14 | . 2 . 4 1 7 Classes Destroyed 10 | 1 4 . 3 1 1 Tunneler 2 | 1 . 1 . . . Hauler 2 | . 2 . . . . Recycler 3 | . 1 1 1 . . Operator 1 | . . . 1 . . Watcher 1 | . . . 1 . . Swarmer 7 | . 3 . 4 . . Grunt 8 | . 5 2 1 . . Duelist 1 | . . . . 1 . Sentry 2 | . . . 2 . . Assembled 7 | . . . . . 7 Best Kill Streak 7 | 1 2 2 4 1 7 Combat Bots Only 7 | . 2 2 4 1 7 Max Kills in Single Turn 2 | 1 2 1 2 1 2 Gunslinging . | . . . . . . Exploded 2 | . 2 . 2 1 2 Melee . | . . . . . . Uniques/NPCs Destroyed . | . . . . . . Combat | -11 -10 -10 -9 -9 -9 -------- Run | Scr Mat Min Mat Min Exi Damage Taken 3497 | . 208 338 95 35 2821 Core 491 | . 53 34 . . 404 Absorbed by Shields . | . . . . . . Core Remaining (%) 82 | 100 . 65 . . . Volleys Fired 111 | 2 27 16 12 1 53 Largest 2 | 2 2 2 2 2 2 Hottest 136 | 40 136 40 136 96 126 Shots Fired 196 | 4 47 32 21 2 90 Gun 101 | 4 24 32 . . 41 Cannon 73 | . 22 . 18 1 32 Launcher 12 | . 1 . 3 1 7 Special 10 | . . . . . 10 Kinetic 101 | 4 24 32 . . 41 Thermal 49 | . 22 . 18 . 9 Explosive 10 | . 1 . 3 1 5 Electromagnetic 35 | . . . . 1 34 Robot Hit Streak 28 | 4 6 10 11 13 28 Robot Miss Streak 7 | . 7 2 2 . 2 Penetration Max . | . . . . . . Secondary Targets 1 | . . 1 . . . Max Gunslinging Chain 1 | . . 1 . . . Shots Hit Robots 133 | 4 21 25 13 2 68 Core Hits 66 | 2 14 9 10 2 29 Critical Hits 1 | . . . 1 . . Critical Kills . | . . . . . . Critical Parts Destroyed 1 | . . . 1 . . Melee Attacks . | . . . . . . Impact . | . . . . . . Slashing . | . . . . . . Piercing . | . . . . . . Sneak Attacks . | . . . . . . Combat Hostiles . | . . . . . . Follow-up Attacks . | . . . . . . Damage Inflicted 2658 | 26 426 295 695 146 1070 Guns 907 | 26 151 290 . . 440 Cannons 529 | . 182 . 266 21 60 Explosions 1177 | . 82 . 429 125 541 Melee . | . . . . . . Ramming 19 | . 11 5 . . 3 Kinetic 907 | 26 151 290 . . 440 Thermal 516 | . 182 . 266 42 26 Explosive 1132 | . 82 . 429 83 538 Electromagnetic 84 | . . . . 21 63 Impact . | . . . . . . Slashing . | . . . . . . Piercing . | . . . . . . Highest Corruption 1 | . . . . . 1 Average Corruption 1 | . . . . . 1 Corruption Purged . | . . . . . . Overload Shots . | . . . . . . Overflow Damage 69 | . . . 55 2 12 Projectiles . | . . . . . . Explosions 69 | . . . 55 2 12 Melee . | . . . . . . Knockbacks . | . . . . . . Impact . | . . . . . . Kinetic . | . . . . . . Secondary . | . . . . . . Self-Inflicted Damage 73 | . . . . 37 36 Shots 4 | . . . . 2 2 Rammed 12 | . 4 2 . . 6 Targets Rammed 12 | . 4 2 . . 6 Kicked . | . . . . . . Crushed . | . . . . . . Highest Temperature 268 | . 268 25 117 48 189 Average Temperature 76 | . 99 12 40 29 90 Received Heat Transfer 288 | . 78 189 21 . . Effects 1 | . 1 . . . . Energy Bleed 1 | . 1 . . . . Siege Activations . | . . . . . . Robots Corrupted . | . . . . . . Combat Hostiles . | . . . . . . Parts Fried . | . . . . . . Impact Corruptions . | . . . . . . Robots Melted . | . . . . . . Combat Hostiles . | . . . . . . Parts Melted 4 | . 1 . 3 . . Heat Transferred 918 | . 333 . 481 50 54 Parts Sabotaged . | . . . . . . Parts Stolen . | . . . . . . Parts Stripped . | . . . . . . Power Chain Reactions . | . . . . . . Missiles Intercepted . | . . . . . . Alert | -11 -10 -10 -9 -9 -9 ------- Run | Scr Mat Min Mat Min Exi Peak Influence 232 | 5 140 104 232 91 . Initial 54 | . 3 54 3 16 . Average 48 | 1 37 42 57 84 . Maximum Alert Level 1 | . . . 1 . . Low Security (%) 95 | 100 100 100 88 100 . Level 1 4 | . . . 11 . . Level 2 . | . . . . . . Level 3 . | . . . . . . Level 4 . | . . . . . . Level 5 . | . . . . . . High Security . | . . . . . . Max Security . | . . . . . . Squads Dispatched 4 | . 1 1 2 . . Investigation 3 | . 1 1 1 . . Extermination . | . . . . . . Reinforcement 1 | . . . 1 . . Assault . | . . . . . . Garrison . | . . . . . . Intercept . | . . . . . . Construction Impeded . | . . . . . . Haulers Reinforced . | . . . . . . Stealth | -11 -10 -10 -9 -9 -9 --------- Run | Scr Mat Min Mat Min Exi Distress Signals 2 | . . . 2 . . Communications Jammed . | . . . . . . Distress Signals . | . . . . . . Times Spotted 43 | . 17 4 14 2 6 Peak Tracking Total 9 | . 3 2 5 1 9 Tactical Retreats 3 | . . . 1 2 . Traps | -11 -10 -10 -9 -9 -9 ------- Run | Scr Mat Min Mat Min Exi Traps Triggered 2 | . 1 . 1 . . Indirectly . | . . . . . . Trap Hack Attempts . | . . . . . . Triggered . | . . . . . . Disarmed . | . . . . . . Reprogrammed . | . . . . . . Reused . | . . . . . . Traps Extracted . | . . . . . . Installed . | . . . . . . Triggered . | . . . . . . Machines | -11 -10 -10 -9 -9 -9 ---------- Run | Scr Mat Min Mat Min Exi Machines Disabled 5 | . . . 1 1 3 Max in Single Turn 1 | . . . 1 1 1 Machines Sabotaged . | . . . . . . Garrisons Compromised . | . . . . . . Overloaded Fab Kills . | . . . . . . Fab Network Shutdowns . | . . . . . . Hacking | -11 -10 -10 -9 -9 -9 --------- Run | Scr Mat Min Mat Min Exi Machines Accessed 12 | . 6 1 4 . 1 Terminals 8 | . 6 1 1 . . Fabricators . | . . . . . . Repair Stations . | . . . . . . Recycling Units 1 | . . . 1 . . Scanalyzers 2 | . . . 2 . . Garrison Access . | . . . . . . Total Hacks 41 | . 20 6 14 . 1 Successful 22 | . 6 4 11 . 1 Failed 19 | . 14 2 3 . . Catastrophic 4 | . 4 . . . . Database Lockouts . | . . . . . . Manual 25 | . 14 5 5 . 1 Terminals 28 | . 20 6 2 . . Fabricators . | . . . . . . Repair Stations . | . . . . . . Recycling Units 4 | . . . 4 . . Scanalyzers 8 | . . . 8 . . Garrison Access . | . . . . . . Terminal Hacks 9 | . 4 4 . . 1 Record 1 | . 1 . . . . Part Schematic 2 | . . 2 . . . Prototype ID Bank 2 | . 1 1 . . . Terminal Index 1 | . 1 . . . . Alert Level 1 | . . 1 . . . Zone Layout 1 | . 1 . . . . EX-Prototype ID Bank 1 | . . . . . 1 Fabricator Hacks . | . . . . . . Repair Station Hacks . | . . . . . . Recycling Unit Hacks 1 | . . . 1 . . Retrieve Components 1 | . . . 1 . . Scanalyzer 8 | . . . 8 . . Insert Component 4 | . . . 4 . . Analyze 4 | . . . 4 . . Garrison Access Hacks . | . . . . . . Unauthorized Hacks 4 | . 2 . 2 . . Terminals 3 | . 2 . 1 . . Track 3 | . 2 . 1 . . Fabricators . | . . . . . . Repair Stations . | . . . . . . Recycling Units 1 | . . . 1 . . Mask 1 | . . . 1 . . Scanalyzers . | . . . . . . Garrison Access . | . . . . . . Data Cores Recovered . | . . . . . . Used . | . . . . . . Hacking Detections 11 | . 6 1 4 . . Full Trace Events 1 | . . 1 . . . Feedback Events . | . . . . . . Feedback Blocked . | . . . . . . Robot Schematics Acquired . | . . . . . . Robots Built . | . . . . . . Matter . | . . . . . . Time . | . . . . . . Total Robot Build Rating . | . . . . . . Part Schematics Acquired 6 | . . 2 4 . . Parts Built . | . . . . . . Matter . | . . . . . . Time . | . . . . . . Total Part Build Rating . | . . . . . . Parts Repaired . | . . . . . . Time . | . . . . . . Parts Recycled . | . . . . . . Recycled Matter . | . . . . . . Retrieved Matter . | . . . . . . Retrieved Components 9 | . . . 9 . . Parts Scanalyzed 4 | . . . 4 . . Part Schematics Acquired 4 | . . . 4 . . Parts Damaged . | . . . . . . Bothacking | -11 -10 -10 -9 -9 -9 ------------ Run | Scr Mat Min Mat Min Exi Used RIF Installer . | . . . . . . Robots Hacked . | . . . . . . Non-combat . | . . . . . . Combat . | . . . . . . Robot Hacks Applied . | . . . . . . Relay Couplers Released . | . . . . . . Robots Rewired . | . . . . . . Allies Hacked . | . . . . . . Hacks Repelled . | . . . . . . Allies | -11 -10 -10 -9 -9 -9 -------- Run | Scr Mat Min Mat Min Exi Total Allies . | . . . . . . Largest Group . | . . . . . . Highest-Rated Group . | . . . . . . Highest-Rated Ally . | . . . . . . Total Orders . | . . . . . . Ally Attacks . | . . . . . . Total Damage . | . . . . . . Kills . | . . . . . . Allies Corrupted . | . . . . . . Allies Melted . | . . . . . . Intel | -11 -10 -10 -9 -9 -9 ------- Run | Scr Mat Min Mat Min Exi Robot Analysis Total . | . . . . . . Derelict Logs Recovered 1 | . . 1 . . . Drone Launches . | . . . . . . Drone Recoveries . | . . . . . . Exploration | -11 -10 -10 -9 -9 -9 ------------- Run | Scr Mat Min Mat Min Exi Turns Passed 4222 | 97 955 632 1412 193 933 Spaces Moved 1627 | 53 487 307 398 96 286 Core 15 | 15 . . . . . Treads 1579 | 38 472 307 380 96 286 Legs . | . . . . . . Wheels 33 | . 15 . 18 . . Hover . | . . . . . . Flight . | . . . . . . Fastest Speed 50 | 50 90 180 140 200 180 Average Speed 178 | 146 163 180 181 200 197 Slowest Speed 200 | 160 180 180 200 200 200 Overloaded Moves . | . . . . . . Propulsion Burnouts . | . . . . . . Robots Hopped . | . . . . . . Cave-ins Triggered . | . . . . . . Exploration Rate (%) 44 | 5 83 67 37 32 41 Regions Visited 5 Branch Regions 3 Pre-discovered Areas . | . . . . . . Known Exits Taken . | . . . . . . Unknown Exits Taken 5 | 1 1 1 1 1 . Scrap Searched 1 | . . 1 . . . Spaces Dug 25 | . 9 . 16 . . Terrain Destroyed 49 | . 9 . 22 11 7 Melee . | . . . . . . Projectile 1 | . . . 1 . . AOE 48 | . 9 . 21 11 7 Terrain Rammed . | . . . . . . Walls Destroyed . | . . . . . . Machines Disabled . | . . . . . . Actions | -11 -10 -10 -9 -9 -9 --------- Run | Scr Mat Min Mat Min Exi Total 2709 | 66 596 354 1077 96 520 Wait 779 | 1 23 26 593 . 136 Move 1623 | 52 486 307 397 95 286 Hop . | . . . . . . Pick Up 60 | 4 22 2 29 . 3 Fast Attach 18 | 6 5 . 4 . 3 Attach 22 | 1 1 . 6 . 14 Detach 4 | . 1 . 1 . 2 Swap 29 | . 10 1 8 . 10 Drop 52 | . 17 1 27 . 7 Fire 111 | 2 27 16 12 1 53 Melee . | . . . . . . Ram 6 | . . . . . 6 Kick . | . . . . . . Crush 5 | . 4 1 . . . Escape Stasis . | . . . . . . Rewire . | . . . . . . Trap . | . . . . . . Miscellaneous . | . . . . . . Route ------- -11/Scrapyard -10/Materials (discovered 3 exits: *Mat x2 / *Min) -10/Mines -9/Materials (discovered 3 exits: [*Mat] / [*Min] / Sto) -9/Mines (discovered 2 exits: [*Mat] / *Exi) -9/Exiles History --------- Turn | Location | Event 17 | -11/Scrapyard | Discovered new exit (range 15) 98 | -11/Scrapyard | Entered Materials 301 | -10/Materials | Build established: Mutant 505 | -10/Materials | Discovered new exit (range 12) 845 | -10/Materials | Discovered new exit (range 14) 1036 | -10/Materials | Discovered new exit (range 6) 1053 | -10/Materials | Entered Mines 1662 | -10/Mines | Discovered new exit (range 10) 1685 | -10/Mines | Entered Materials 1685 | -9/Materials | Evolved 2 slots: Utility x2 1686 | -9/Materials | Identified exit to Storage 2729 | -9/Materials | Discovered new exit (range 16) 2928 | -9/Materials | Build established: Hauler-Mutant 3066 | -9/Materials | Discovered new exit (range 14) 3097 | -9/Materials | Entered Mines 3105 | -9/Mines | Met a Derelict bent on vengeance 3191 | -9/Mines | Assembled infested the area 3246 | -9/Mines | Discovered new exit (range 3) 3282 | -9/Mines | Deemed a non-threat by the Exiles lab entrance 3282 | -9/Mines | Discovered new exit (range 5) 3290 | -9/Mines | Entered Exiles 3344 | -9/Exiles | Met 8R-AWN 3374 | -9/Exiles | Met EX-HEX 3430 | -9/Exiles | Met EX-BIN 3454 | -9/Exiles | Aligned with FarCom system 3456 | -9/Exiles | Given EX-Vault access code 3504 | -9/Exiles | Opened EX-Vault 3548 | -9/Exiles | Warned to stay clear of 0b10 Research branches 3785 | -9/Exiles | Found Field Lobotomy Kit 3822 | -9/Exiles | Attacked by the Exiles 3870 | -9/Exiles | Destroyed 7 combat bots 4020 | -9/Exiles | Lost 7 parts (1p2n4w) 4058 | -9/Exiles | Core integrity fell below 50% 4105 | -9/Exiles | Lost 5 parts (2n1u2w) 4207 | -9/Exiles | Core integrity fell below 20% 4223 | -9/Exiles | Destroyed by 8R-AWN with 8R-AWN's Boregun Last Messages --------------- 04197_ HV Slug penetrates Earth. 04199_ Slammed into 8R-AWN. 04201_ Penetrated by HV Slug. 04201_ Critical hit. 04201_ Imp. Light Armor Plating destroyed. 04206_ Slammed into 8R-AWN. 04206_ Penetrated by HV Slug. 04206_ HV Slug penetrates Wall. 04210_ Penetrated by HV Slug. 04212_ Slammed into 8R-AWN. 04212_ Destabilizing: Core damaged (-20). 04214_ Penetrated by HV Slug. 04214_ Critical hit. 04214_ Penetrated by HV Slug. 04218_ Slammed into 8R-AWN. 04218_ Penetrated by HV Slug. 04218_ HV Slug penetrates Wall. 04218_ Penetrated by HV Slug. 04218_ HV Slug penetrates Wall. 04223_ Penetrated by HV Slug. Map ----- +----------------------------------------------------+ | | | | | | | | | | | | | | | | | | | | | | | ???????????????????#########?????????????????????? | | ???????????????????# #?????????????????????? | | ???????????????????# !! #?????????????????????? | | ???????????????????# #?????????????????????? | | ???????????????????# X#?????????????????????? | | ???????????????????## ##?????????????????????? | | ???????????????????#X #??????????????????????? | | ???????????????????## #??????????????????????? | | ????????????????????# #???##?????????????????? | | ????????????????????# #### ####??????????????? | | ????????????????????# ## "# #????????????? | | ????????????????????# ## ;# ##????????? | | ????????????????????# ! ; ?????? | | ????????????????????# ; ! ###????????????? | | ?????????????#####??# g@;# "#?????????????? | | ????????????#""""""?# ## ##"###?????????????? | | ????????????#"""" ## #### ?#???????????????? | | ????????????#""X" #???# ????????????????? | | ????????????#" #????###???????????????? | | ????????????#" ## #??????????????????????? | | ????????????#""""""?# #?#########????????????? | | ????????????##"####?# #?#"""""""#????????????? | | ???????????? ??????# #?#"""""""#????????????? | | ???????????""???????# #?#"""""""#????????????? | | ???????????????????## ###"" """"#????????????? | | ???????????????????#" """"#????????????? | | ???????????????????#" """#????????????? | | ???????????????????# """#????????????? | | ??????????????????? """#????????????? | | ??????????????????? """#????????????? | | ??????????????????? """#????????????? | | ???????????????????# """"????????????? | | ????????????????????# """#????????????? | | ????????????????????#" "X" """"????????????? | | ????????????????????#" """ #????????????? | | ????????????????????#" """""""""#????????????? | | ???????????????????##" ###########????????????? | | ??????????????????##"" #??????????????????????? | | ????????????????###"" #??????????????????????? | +----------------------------------------------------+ Best States ------------- Heat Dissipation 42 Energy Generation 14 Energy Capacity 265 Matter Stores 300 Matter Capacity 300 Sight Range 16 Terrain Scan Range 16 Terrain Scan Density 10 Armor Coverage 300 Evasion (%) 42 Recoil Reduction 2 Item Schematics ----------------- Med. Storage Unit | -10/Mines | Hacked Hcp. Storage Unit | -10/Mines | Hacked Hacking Suite | -9/Materials | Scanalyzed Rocket Launcher | -9/Materials | Scanalyzed Imp. Light Armor Plating | -9/Materials | Scanalyzed EM Pulse Cannon | -9/Materials | Scanalyzed Robot Schematics ------------------ None Fabricated ------------ Nothing Alien Tech Used ----------------- None Achievements -------------- None Challenges ------------ None Game ------ Seed AdvancedThermalBroadsword Manual? 0 Play Time 00:41:17 Cumulative 138.5 hours Start 2021.01.19 @ 21:15:29 End 2021.01.19 @ 22:17:42 Sessions 1 Manual Loads 0 Difficulty Rogue Special Mode None Game No. 90 Rogue 90 Adventurer 0 Explorer 0 Win Type - Total 3 Types 3/0/0/0/0/0/0/0/0 Lore% 34 Gallery% 57 Achievement% 44 Wizard Run 0 Options --------- ASCII 0 Keyboard 0 Movement Mouse Keybinds 0 Fullscreen 2 Font 18/TerminusBold Map View 76x50 Tactical HUD 1 Map Filters NONE Filters NONE Steam 1 RUN: 7f3b6b1a-0da4-48ea-b7a7-8e542d05dd62